fUST/lending_fUST_20250611
["ID","MTS","AMOUNT","RATE_DAILY","PERIOD"]
[365287883,1749580243180,-460.0,0.00021361,4]
[365287886,1749580243192,-152.67,0.00021369,4]
[365287888,1749580243206,-460.0,0.00021635,4]
[365287890,1749580243218,-460.0,0.00021635,4]
[365287893,1749580243231,-460.0,0.00021909,4]
[365287895,1749580243242,-460.0,0.00021909,4]
[365287897,1749580243255,-460.0,0.00022183,4]
[365287900,1749580243268,-383.24,0.00022183,4]
[365287902,1749580243280,-460.0,0.00022457,4]
[365287904,1749580243291,-460.0,0.00022731,4]
[365287906,1749580243302,-160.0,0.00022759,2]
[365287910,1749580243314,-460.0,0.00023005,4]
[365287913,1749580243325,-460.0,0.00023279,4]
[365287915,1749580243336,-460.0,0.00023553,4]
[365287917,1749580243348,-2405.36606214,0.000238,3]
[365287920,1749580243362,-683.20353383,0.000238,3]
[365287922,1749580243375,-81414.93897652,0.000238,3]
[365287925,1749580243389,-37680.16419264,0.000238,3]
[365288151,1749580246155,-460.0,0.00021095,4]
[365288152,1749580246168,-460.0,0.0002136,4]
[365288153,1749580246181,-500.31986821,0.00021361,4]
[365288154,1749580246194,-460.0,0.00021634,4]
[365288155,1749580246205,-460.0,0.00021908,4]
[365288156,1749580246215,-460.0,0.00022182,4]
[365288157,1749580246226,-177.57790936,0.00022456,4]
[365288158,1749580246236,-20772.48788017,0.000238,3]
[365288159,1749580246249,-817.1,0.00023826,4]
[365288160,1749580246261,-840.41,0.00023826,4]
[365288161,1749580246274,-666.15,0.00023826,4]
[365288162,1749580246286,-825.72,0.00023826,4]
[365288163,1749580246297,-460.0,0.00023826,4]
[365288164,1749580246307,-494.95,0.00023827,4]
[365288165,1749580246318,-460.0,0.00023827,4]
[365288166,1749580246329,-933.09,0.00023827,4]
[365288167,1749580246340,-460.0,0.00023827,4]
[365288168,1749580246351,-464.36,0.00023827,4]
[365288169,1749580246362,-460.0,0.00023827,4]
[365288170,1749580246373,-460.0,0.00023827,4]
[365288171,1749580246382,-379.28546039,0.00023828,4]
[365288172,1749580246396,-192.92453961,0.00023828,4]
[365288173,1749580246407,-1604.95,0.00023828,4]
[365288174,1749580246417,-1182.25,0.00023828,4]
[365288175,1749580246428,-2446.16,0.00023828,4]
[365288176,1749580246439,-460.0,0.00023828,4]
[365288177,1749580246450,-531.61,0.00023828,4]
[365288178,1749580246463,-811.02,0.00023835,4]
[365288179,1749580246474,-987.77,0.00023835,4]
[365288180,1749580246485,-117.1885079,0.00023835,4]
[365288197,1749580691500,870.5,0.00024859,60]
[365288208,1749581171984,3000.0,0.00024863,60]
[365288276,1749581432448,-169.689085,0.00020235,2]
[365288279,1749581432459,-666.0,0.0002025,2]
[365288282,1749581432472,-246.553799,0.00020296,2]
[365288285,1749581432482,-169.689085,0.00020336,2]
[365288288,1749581432493,-500.0,0.00021029,2]
[365288290,1749581432503,-300.0,0.00021094,2]
[365288292,1749581432514,-300.0,0.00021094,2]
[365288293,1749581432524,-561.23305942,0.00021095,4]
[365288295,1749581432534,-460.0,0.00021095,4]
[365288297,1749581432544,-380.0,0.00021095,4]
[365288299,1749581432555,-360.0,0.00021095,4]
[365288301,1749581432565,-396.252502,0.00021095,4]
[365288303,1749581432575,-150.30721378,0.00021095,4]
[365288305,1749581432586,-460.0,0.00021095,4]
[365288306,1749581432595,-784.33,0.00021242,2]
[365288307,1749581432606,-228.01428031,0.00021259,2]
[365288308,1749581432616,-460.0,0.00021357,4]
[365288309,1749581432626,-460.0,0.00021357,4]
[365288310,1749581432636,-460.0,0.00021357,4]
[365288311,1749581432646,-669.93,0.00021357,4]
[365288312,1749581432656,-440.0,0.00021357,4]
[365288313,1749581432667,-1004.61,0.00021357,4]
[365288314,1749581432676,-949.74,0.00021357,4]
[365288315,1749581432686,-868.44,0.00021357,4]
[365288316,1749581432696,-460.0,0.00021357,4]
[365288317,1749581432706,-460.0,0.00021357,4]
[365288318,1749581432715,-646.54,0.00021357,4]
[365288319,1749581432727,-460.0,0.00021357,4]
[365288320,1749581432737,-825.58,0.00021357,4]
[365288321,1749581432747,-372.1124176,0.00021357,4]
[365288322,1749581432757,-600.0,0.00021357,4]
[365288323,1749581432767,-330.0,0.00021358,4]
[365288324,1749581432777,-186.004,0.00021358,2]
[365288325,1749581432786,-435.12198118,0.00021358,4]
[365288326,1749581432796,-460.0,0.00021358,4]
[365288327,1749581432805,-440.0,0.00021358,4]
[365288328,1749581432815,-460.0,0.00021358,4]
[365288329,1749581432826,-460.0,0.00021358,4]
[365288330,1749581432835,-500.0,0.00021358,4]
[365288331,1749581432846,-460.0,0.00021358,4]
[365288332,1749581432855,-460.0,0.00021358,4]
[365288333,1749581432865,-495.53,0.00021358,4]
[365288334,1749581432875,-460.0,0.00021358,4]
[365288335,1749581432885,-460.0,0.00021358,4]
[365288336,1749581432895,-460.0,0.00021358,4]
[365288337,1749581432904,-460.0,0.00021358,4]
[365288338,1749581432914,-558.88946386,0.00021358,4]
[365288339,1749581432923,-935.55,0.00021358,4]
[365288340,1749581432932,-460.0,0.00021358,4]
[365288341,1749581432943,-460.0,0.00021358,4]
[365288342,1749581432953,-460.0,0.00021358,4]
[365288344,1749581432962,-185.31676408,0.00021358,4]
[365288345,1749581432975,-460.74,0.00021358,4]
[365288347,1749581432985,-460.0,0.00021358,4]
[365288349,1749581432995,-460.0,0.00021358,4]
[365288350,1749581433005,-460.0,0.00021358,4]
[365288352,1749581433016,-460.0,0.00021358,4]
[365288354,1749581433026,-460.0,0.00021358,4]
[365288356,1749581433038,-460.0,0.00021358,4]
[365288358,1749581433050,-460.0,0.00021358,4]
[365288360,1749581433060,-177.77088841,0.00021358,4]
[365288362,1749581433070,-440.0,0.00021358,4]
[365288365,1749581433083,-380.0,0.00021359,4]
[365288367,1749581433092,-380.0,0.00021359,4]
[365288369,1749581433103,-460.0,0.00021359,4]
[365288371,1749581433112,-460.0,0.00021359,4]
[365288373,1749581433124,-460.0,0.00021359,4]
[365288375,1749581433134,-400.0,0.00021359,4]
[365288377,1749581433144,-460.0,0.00021359,4]
[365288379,1749581433155,-440.0,0.00021359,4]
[365288381,1749581433164,-440.0,0.00021359,4]
[365288383,1749581433174,-460.0,0.00021359,4]
[365288385,1749581433184,-460.0,0.00021359,4]
[365288387,1749581433194,-1452.63,0.00021359,4]
[365288389,1749581433204,-500.0,0.00021359,4]
[365288391,1749581433214,-460.0,0.00021359,4]
[365288393,1749581433228,-440.0,0.00021359,4]
[365288394,1749581433238,-405.18335747,0.00021359,4]
[365288540,1749581439300,-460.0,0.00021357,4]
[365288542,1749581439310,-460.0,0.00021358,4]
[365288544,1749581439320,-54.81664253,0.00021359,4]
[365288546,1749581439330,-542.68177071,0.00021359,4]
[365288548,1749581439339,-440.0,0.00021359,4]
[365288550,1749581439349,-460.0,0.00021359,4]
[365288552,1749581439359,-460.0,0.00021359,4]
[365288554,1749581439369,-460.0,0.00021359,4]
[365288557,1749581439379,-460.0,0.00021359,4]
[365288559,1749581439389,-460.0,0.00021359,4]
[365288560,1749581439398,-1617.73114769,0.00021359,4]
[365288563,1749581439410,-608.61885231,0.00021359,4]
[365288565,1749581439420,-436.80543793,0.00021359,4]
[365288567,1749581439433,-63.19456207,0.00021359,4]
[365288569,1749581439442,-460.0,0.00021359,4]
[365288571,1749581439452,-1037.24790477,0.00021359,4]
[365288573,1749581439465,-79.32209523,0.00021359,4]
[365288575,1749581439475,-460.0,0.00021359,4]
[365288577,1749581439487,-498.56,0.00021359,4]
[365288579,1749581439495,-460.0,0.00021359,4]
[365288581,1749581439505,-440.0,0.00021359,4]
[365288583,1749581439514,-460.0,0.00021359,4]
[365288585,1749581439524,-500.0,0.00021359,4]
[365288586,1749581439532,-460.0,0.00021359,4]
[365288588,1749581439542,-440.0,0.00021359,4]
[365288590,1749581439552,-460.0,0.00021359,4]
[365288592,1749581439561,-460.0,0.00021359,2]
[365288594,1749581439571,-460.0,0.00021359,4]
[365288596,1749581439580,-460.0,0.00021359,4]
[365288598,1749581439590,-460.0,0.00021359,4]
[365288600,1749581439599,-460.0,0.00021359,4]
[365288602,1749581439608,-460.0,0.00021359,4]
[365288604,1749581439617,-460.0,0.00021359,4]
[365288606,1749581439626,-460.0,0.00021359,4]
[365288608,1749581439636,-315.61790475,0.00021359,4]
[365288974,1749581443414,-460.0,0.00021358,4]
[365288975,1749581443435,-144.38209525,0.00021359,4]
[365288977,1749581443445,-155.0,0.00021359,2]
[365288979,1749581443455,-1001.82027821,0.00021368,2]
[365288981,1749581443465,-330.0,0.00021369,4]
[365288983,1749581443474,-460.0,0.00021631,4]
[365288985,1749581443487,-498.29,0.00021631,4]
[365288987,1749581443496,-669.93,0.00021631,4]
[365288989,1749581443506,-1004.61,0.00021631,4]
[365288991,1749581443516,-949.74,0.00021631,4]
[365288993,1749581443526,-868.44,0.00021631,4]
[365288995,1749581443535,-440.0,0.00021631,4]
[365288997,1749581443546,-460.0,0.00021631,4]
[365288999,1749581443555,-646.54,0.00021631,4]
[365289002,1749581443565,-460.0,0.00021631,4]
[365289006,1749581443575,-825.58,0.00021631,4]
[365289008,1749581443584,-460.0,0.00021631,4]
[365289010,1749581443594,-460.0,0.00021632,4]
[365289012,1749581443603,-166.27922572,0.00021632,4]
[365289014,1749581443612,-500.0,0.00021632,4]
[365289016,1749581443622,-261.4130808,0.00021632,4]
[365289017,1749581443631,-495.53,0.00021632,4]
[365289020,1749581443641,-460.0,0.00021632,4]
[365289022,1749581443650,-460.0,0.00021632,4]
[365289024,1749581443659,-448.33,0.00021632,4]
[365289026,1749581443668,-460.0,0.00021632,4]
[365289028,1749581443678,-935.55,0.00021632,4]
[365289030,1749581443693,-460.0,0.00021632,4]
[365289033,1749581443707,-460.0,0.00021632,4]
[365289035,1749581443716,-460.0,0.00021632,4]
[365289052,1749581443873,-460.74,0.00021632,4]
[365289054,1749581443882,-460.0,0.00021632,4]
[365289056,1749581443892,-398.85082259,0.00021632,4]
[365289058,1749581443901,-440.0,0.00021632,4]
[365289060,1749581443911,-460.0,0.00021632,4]
[365289062,1749581443920,-460.0,0.00021632,4]
[365289064,1749581443929,-460.0,0.00021632,4]
[365289066,1749581443938,-460.0,0.00021633,4]
[365289068,1749581443949,-440.0,0.00021633,4]
[365289070,1749581443958,-440.0,0.00021633,4]
[365289072,1749581443967,-430.0,0.00021633,4]
[365289074,1749581443977,-1452.63,0.00021633,4]
[365289076,1749581443989,-500.0,0.00021633,4]
[365289078,1749581443998,-460.0,0.00021633,4]
[365289080,1749581444007,-460.0,0.00021633,4]
[365289082,1749581444016,-460.0,0.00021633,4]
[365289084,1749581444026,-2226.35,0.00021633,4]
[365289086,1749581444036,-500.0,0.00021633,4]
[365289088,1749581444048,-380.0,0.00021633,4]
[365289090,1749581444058,-1116.57,0.00021633,4]
[365289092,1749581444067,-460.0,0.00021633,4]
[365289094,1749581444078,-498.56,0.00021633,4]
[365289096,1749581444087,-460.0,0.00021633,4]
[365289098,1749581444099,-460.0,0.00021633,4]
[365289100,1749581444117,-460.0,0.00021633,4]
[365289102,1749581444127,-460.0,0.00021633,4]
[365289104,1749581444137,-460.0,0.00021633,2]
[365289106,1749581444146,-460.0,0.00021633,4]
[365289108,1749581444155,-460.0,0.00021633,4]
[365289110,1749581444165,-460.0,0.00021633,4]
[365289112,1749581444174,-460.0,0.00021633,4]
[365289114,1749581444183,-460.0,0.00021633,4]
[365289116,1749581444192,-500.0,0.00021642,4]
[365289118,1749581444201,-500.0,0.00021658,2]
[365289120,1749581444211,-697.85606211,0.00021728,2]
[365289122,1749581444220,-228.01428029,0.0002176,2]
[365289124,1749581444230,-509.45128232,0.000219,6]
[365289126,1749581444239,-460.0,0.00021905,4]
[365289128,1749581444249,-669.93,0.00021905,4]
[365289130,1749581444258,-1004.61,0.00021905,4]
[365289132,1749581444267,-949.74,0.00021905,4]
[365289134,1749581444276,-868.44,0.00021905,4]
[365289136,1749581444286,-460.0,0.00021905,4]
[365289138,1749581444296,-646.54,0.00021905,4]
[365289140,1749581444305,-460.0,0.00021905,4]
[365289142,1749581444314,-825.58,0.00021905,4]
[365289144,1749581444322,-460.0,0.00021905,4]
[365289146,1749581444331,-460.0,0.00021906,4]
[365289148,1749581444340,-495.53,0.00021906,4]
[365289150,1749581444349,-460.0,0.00021906,4]
[365289152,1749581444359,-460.0,0.00021906,4]
[365289154,1749581444368,-935.55,0.00021906,4]
[365289156,1749581444377,-463.05286985,0.00021906,4]
[365289158,1749581444386,-460.0,0.00021906,4]
[365289160,1749581444395,-460.0,0.00021906,4]
[365289162,1749581444405,-460.74,0.00021906,4]
[365289164,1749581444414,-460.0,0.00021906,4]
[365289166,1749581444423,-460.0,0.00021906,4]
[365289168,1749581444432,-521.28,0.00021906,4]
[365289170,1749581444441,-460.0,0.00021906,4]
[365289172,1749581444450,-460.0,0.00021907,4]
[365289174,1749581444459,-1452.63,0.00021907,4]
[365289176,1749581444469,-500.0,0.00021907,4]
[365289178,1749581444481,-460.0,0.00021907,4]
[365289180,1749581444489,-460.0,0.00021907,4]
[365289182,1749581444499,-518.94930371,0.00021907,4]
[365289184,1749581444508,-2226.35,0.00021907,4]
[365289186,1749581444518,-501.00000054,0.00021907,4]
[365289188,1749581444527,-1116.57,0.00021907,4]
[365289190,1749581444537,-498.56,0.00021907,4]
[365289192,1749581444546,-460.0,0.00021907,4]
[365289194,1749581444555,-460.0,0.00021907,4]
[365289195,1749581444564,-500.0,0.00021907,4]
[365289197,1749581444573,-460.0,0.00021907,4]
[365289199,1749581444583,-420.0,0.00021907,4]
[365289201,1749581444593,-460.0,0.00021907,2]
[365289203,1749581444602,-460.0,0.00021907,4]
[365289205,1749581444611,-440.0,0.00021907,4]
[365289207,1749581444620,-460.0,0.00021907,4]
[365289209,1749581444629,-460.0,0.00021907,4]
[365289211,1749581444639,-460.0,0.00021907,4]
[365289213,1749581444648,-509.45128232,0.00022003,6]
[365289215,1749581444658,-509.45128232,0.00022107,6]
[365289217,1749581444667,-210.0,0.00022179,4]
[365289219,1749581444677,-669.93,0.00022179,4]
[365289221,1749581444686,-1004.61,0.00022179,4]
[365289223,1749581444695,-949.74,0.00022179,4]
[365289225,1749581444704,-868.44,0.00022179,4]
[365289227,1749581444714,-460.0,0.00022179,4]
[365289229,1749581444724,-646.54,0.00022179,4]
[365289231,1749581444740,-460.0,0.00022179,4]
[365289233,1749581444749,-825.58,0.00022179,4]
[365289235,1749581444759,-460.0,0.00022179,4]
[365289237,1749581444768,-460.0,0.0002218,4]
[365289239,1749581444778,-495.53,0.0002218,4]
[365289241,1749581444788,-460.0,0.0002218,4]
[365289243,1749581444798,-380.0,0.0002218,4]
[365289245,1749581444808,-935.55,0.0002218,4]
[365289247,1749581444818,-460.0,0.0002218,4]
[365289249,1749581444828,-460.0,0.0002218,4]
[365289251,1749581444837,-460.74,0.0002218,4]
[365289253,1749581444847,-460.0,0.0002218,4]
[365289255,1749581444857,-460.0,0.0002218,4]
[365289257,1749581444866,-460.0,0.0002218,4]
[365289259,1749581444876,-460.0,0.00022181,4]
[365289261,1749581444885,-1452.63,0.00022181,4]
[365289263,1749581444895,-500.0,0.00022181,4]
[365289265,1749581444905,-460.0,0.00022181,4]
[365289267,1749581444914,-220.0,0.00022181,4]
[365289269,1749581444923,-2226.35,0.00022181,4]
[365289271,1749581444933,-1116.57,0.00022181,4]
[365289273,1749581444943,-498.56,0.00022181,4]
[365289275,1749581444952,-460.0,0.00022181,4]
[365289277,1749581444962,-460.0,0.00022181,4]
[365289279,1749581444972,-440.0,0.00022181,2]
[365289281,1749581444985,-440.0,0.00022181,4]
[365289283,1749581444995,-460.0,0.00022181,4]
[365289285,1749581445005,-440.0,0.00022181,4]
[365289287,1749581445015,-380.0,0.00022181,4]
[365289289,1749581445025,-509.45128232,0.0002221,6]
[365289291,1749581445035,-228.01428029,0.00022261,2]
[365289293,1749581445045,-509.45128232,0.00022314,7]
[365289295,1749581445057,-509.45128232,0.00022417,7]
[365289297,1749581445067,-669.93,0.00022453,4]
[365289299,1749581445078,-1004.61,0.00022453,4]
[365289301,1749581445087,-949.74,0.00022453,4]
[365289303,1749581445097,-868.44,0.00022453,4]
[365289305,1749581445107,-460.0,0.00022453,4]
[365289307,1749581445117,-646.54,0.00022453,4]
[365289310,1749581445128,-460.0,0.00022453,4]
[365289311,1749581445138,-825.58,0.00022453,4]
[365289313,1749581445147,-460.0,0.00022453,4]
[365289315,1749581445156,-460.0,0.00022454,4]
[365289317,1749581445166,-495.53,0.00022454,4]
[365289319,1749581445175,-460.0,0.00022454,4]
[365289321,1749581445185,-935.55,0.00022454,4]
[365289323,1749581445195,-440.0,0.00022454,4]
[365289325,1749581445205,-460.0,0.00022454,4]
[365289327,1749581445215,-460.74,0.00022454,4]
[365289329,1749581445224,-460.0,0.00022454,4]
[365289331,1749581445237,-460.0,0.00022454,4]
[365289333,1749581445246,-460.0,0.00022454,4]
[365289335,1749581445256,-460.0,0.00022455,4]
[365289337,1749581445266,-1452.63,0.00022455,4]
[365289339,1749581445275,-500.0,0.00022455,4]
[365289341,1749581445285,-420.0,0.00022455,4]
[365289343,1749581445295,-2226.35,0.00022455,4]
[365289345,1749581445305,-1116.57,0.00022455,4]
[365289348,1749581445315,-498.56,0.00022455,4]
[365289349,1749581445325,-380.0,0.00022455,4]
[365289351,1749581445334,-460.0,0.00022455,4]
[365289353,1749581445344,-406.42001689,0.00022455,4]
[365289355,1749581445355,-394.0,0.00022465,4]
[365289358,1749581445364,-509.45128232,0.00022521,7]
[365289360,1749581445374,-509.45128232,0.00022624,7]
[365289362,1749581445394,-669.93,0.00022727,4]
[365289364,1749581445404,-1004.61,0.00022727,4]
[365289365,1749581445413,-949.74,0.00022727,4]
[365289368,1749581445425,-868.44,0.00022727,4]
[365289370,1749581445435,-460.0,0.00022727,4]
[365289372,1749581445444,-646.54,0.00022727,4]
[365289374,1749581445453,-460.0,0.00022727,4]
[365289376,1749581445463,-825.58,0.00022727,4]
[365289378,1749581445472,-460.0,0.00022727,4]
[365289379,1749581445483,-509.45128232,0.00022728,7]
[365289381,1749581445493,-460.0,0.00022728,4]
[365289383,1749581445509,-495.53,0.00022728,4]
[365289385,1749581445523,-460.0,0.00022728,4]
[365289388,1749581445533,-935.55,0.00022728,4]
[365289390,1749581445543,-400.0,0.00022728,4]
[365289392,1749581445552,-460.74,0.00022728,4]
[365289394,1749581445564,-460.0,0.00022728,4]
[365289396,1749581445574,-460.0,0.00022728,4]
[365289398,1749581445583,-460.0,0.00022728,4]
[365289400,1749581445592,-460.0,0.00022729,4]
[365289402,1749581445601,-1452.63,0.00022729,4]
[365289404,1749581445611,-500.0,0.00022729,4]
[365289406,1749581445620,-2226.35,0.00022729,4]
[365289408,1749581445630,-1116.57,0.00022729,4]
[365289410,1749581445639,-498.56,0.00022729,4]
[365289412,1749581445648,-460.0,0.00022729,4]
[365289414,1749581445657,-160.0,0.00022759,2]
[365289416,1749581445667,-160.0,0.00022759,2]
[365289418,1749581445676,-842.5625,0.00022759,2]
[365289420,1749581445686,-213.1263252,0.00022759,2]
[365289422,1749581445696,-834.9046531,0.00022759,2]
[365289424,1749581445706,-160.0,0.00022759,2]
[365289426,1749581445715,-229.6792923,0.00022759,2]
[365289427,1749581445724,-160.0,0.00022759,2]
[365289429,1749581445737,-160.0,0.00022759,2]
[365289432,1749581445746,-424.12530924,0.00022759,2]
[365289434,1749581445756,-160.0,0.00022759,2]
[365289435,1749581445766,-228.01428029,0.00022762,2]
[365289437,1749581445775,-509.45128232,0.00022831,8]
[365289440,1749581445785,-160.51481706,0.00022902,2]
[365289443,1749581445794,-509.45128232,0.00022934,8]
[365289445,1749581445804,-420.0,0.00022943,2]
[365289448,1749581445813,-364.9974737,0.00022959,2]
[365289449,1749581445822,-10431.65681986,0.00023,4]
[365289450,1749581445832,-669.93,0.00023001,4]
[365289451,1749581445841,-1004.61,0.00023001,4]
[365289452,1749581445851,-949.74,0.00023001,4]
[365289453,1749581445860,-868.44,0.00023001,4]
[365289454,1749581445870,-460.0,0.00023001,4]
[365289455,1749581445880,-646.54,0.00023001,4]
[365289456,1749581445889,-460.0,0.00023001,4]
[365289457,1749581445899,-825.58,0.00023001,4]
[365289458,1749581445909,-460.0,0.00023001,4]
[365289459,1749581445919,-160.21,0.00023002,4]
[365289460,1749581445928,-495.53,0.00023002,4]
[365289461,1749581445938,-460.0,0.00023002,4]
[365289462,1749581445947,-935.55,0.00023002,4]
[365289463,1749581445957,-460.74,0.00023002,4]
[365289464,1749581445967,-460.0,0.00023002,4]
[365289465,1749581445976,-460.0,0.00023002,4]
[365289466,1749581445988,-460.0,0.00023002,4]
[365289467,1749581445998,-460.0,0.00023003,4]
[365289468,1749581446008,-1452.63,0.00023003,4]
[365289469,1749581446017,-331.816821,0.00023003,4]
[365289470,1749581446026,-2226.35,0.00023003,4]
[365289471,1749581446036,-1116.57,0.00023003,4]
[365289472,1749581446045,-498.56,0.00023003,4]
[365289473,1749581446057,-460.0,0.00023003,4]
[365289474,1749581446067,-509.45128232,0.00023038,8]
[365289475,1749581446076,-509.45128232,0.00023141,8]
[365289476,1749581446086,-1568.66,0.00023173,2]
[365289478,1749581446095,-500.0,0.00023221,2]
[365289479,1749581446105,-509.45128232,0.00023245,8]
[365289481,1749581446115,-228.01428029,0.00023262,2]
[365289482,1749581446125,-669.93,0.00023275,4]
[365289483,1749581446135,-1004.61,0.00023275,4]
[365289484,1749581446146,-949.74,0.00023275,4]
[365289485,1749581446155,-868.44,0.00023275,4]
[365289486,1749581446165,-460.0,0.00023275,4]
[365289487,1749581446175,-646.54,0.00023275,4]
[365289488,1749581446184,-460.0,0.00023275,4]
[365289489,1749581446194,-825.58,0.00023275,4]
[365289490,1749581446203,-405.10432001,0.00023275,2]
[365289491,1749581446213,-535.9398668,0.00023275,2]
[365289492,1749581446222,-460.0,0.00023275,4]
[365289493,1749581446233,-495.53,0.00023276,4]
[365289494,1749581446243,-460.0,0.00023276,4]
[365289495,1749581446252,-935.55,0.00023276,4]
[365289496,1749581446261,-460.74,0.00023276,4]
[365289497,1749581446271,-460.0,0.00023276,4]
[365289498,1749581446280,-460.0,0.00023276,4]
[365289499,1749581446290,-595.08,0.00023277,4]
[365289500,1749581446299,-1452.63,0.00023277,4]
[365289501,1749581446309,-2226.35,0.00023277,4]
[365289502,1749581446319,-1116.57,0.00023277,4]
[365289503,1749581446329,-498.56,0.00023277,4]
[365289504,1749581446338,-460.0,0.00023277,4]
[365289505,1749581446348,-509.45128232,0.00023348,9]
[365289507,1749581446357,-509.45128232,0.00023452,9]
[365289509,1749581446367,-500.0,0.00023479,4]
[365289511,1749581446376,-281.16332978,0.00023479,4]
[365289512,1749581446387,-500.0,0.00023479,4]
[365289514,1749581446396,-164.29249986,0.00023479,4]
[365289515,1749581446407,-500.0,0.00023479,4]
[365289517,1749581446416,-151.0,0.00023479,4]
[365289518,1749581446426,-500.0,0.00023479,4]
[365289519,1749581446436,-151.0,0.00023479,4]
[365289520,1749581446446,-151.0,0.00023479,4]
[365289521,1749581446456,-500.0,0.00023479,4]
[365289522,1749581446468,-207.4,0.00023484,2]
[365289523,1749581446479,-5000.0,0.00023484,2]
[365289524,1749581446489,-500.0,0.00023506,4]
[365289525,1749581446499,-500.0,0.00023506,4]
[365289526,1749581446509,-500.0,0.00023506,4]
[365289527,1749581446519,-151.0,0.00023506,4]
[365289528,1749581446530,-500.83773021,0.00023506,4]
[365289529,1749581446539,-151.0,0.00023506,4]
[365289530,1749581446549,-151.0,0.00023506,4]
[365289531,1749581446559,-500.0,0.00023506,4]
[365289532,1749581446569,-160.51481704,0.00023522,2]
[365289533,1749581446579,-500.0,0.00023534,4]
[365289534,1749581446588,-500.0,0.00023534,4]
[365289535,1749581446598,-500.0,0.00023534,4]
[365289536,1749581446607,-151.0,0.00023534,4]
[365289537,1749581446616,-198.0,0.00023534,4]
[365289538,1749581446626,-151.0,0.00023534,4]
[365289539,1749581446635,-500.0,0.00023534,4]
[365289540,1749581446745,-669.93,0.00023549,4]
[365289541,1749581446755,-1004.61,0.00023549,4]
[365289542,1749581446765,-949.74,0.00023549,4]
[365289543,1749581446775,-868.44,0.00023549,4]
[365289544,1749581446785,-460.0,0.00023549,4]
[365289545,1749581446795,-646.54,0.00023549,4]
[365289546,1749581446805,-460.0,0.00023549,4]
[365289547,1749581446814,-825.58,0.00023549,4]
[365289548,1749581446824,-460.0,0.00023549,4]
[365289549,1749581446834,-495.53,0.0002355,4]
[365289550,1749581446843,-460.0,0.0002355,4]
[365289551,1749581446853,-935.55,0.0002355,4]
[365289552,1749581446862,-460.74,0.0002355,4]
[365289553,1749581446872,-460.0,0.0002355,4]
[365289554,1749581446882,-460.0,0.0002355,4]
[365289555,1749581446891,-1452.63,0.00023551,4]
[365289556,1749581446901,-2226.35,0.00023551,4]
[365289557,1749581446911,-1116.57,0.00023551,4]
[365289558,1749581446920,-498.56,0.00023551,4]
[365289559,1749581446930,-460.0,0.00023551,4]
[365289560,1749581446940,-509.45128232,0.00023555,9]
[365289561,1749581446950,-151.0,0.00023561,4]
[365289562,1749581446959,-168.0,0.00023581,2]
[365289563,1749581446969,-151.0,0.00023589,4]
[365289564,1749581446978,-500.0,0.00023592,2]